Cogmind - Beta 16 @@@ ROGUE MODE // 2025.11.07 @ 11:01:19 Player: souux Result: Destroyed by Triborg with Siege Cannon Performance ------------- Evolutions (0) 0 Regions Visited (3) 600 Robots Destroyed (26) 130 Value Destroyed (535) 535 Prototype IDs (0) 0 Alien Tech Used (0) 0 Bonus (300) 300 TOTAL SCORE: 1565 Bonus ------- Registered with UFD 300 Cogmind --------- Core Integrity 0/250 Matter 255/300 Energy 180/200 System Corruption 0% Temperature Hot (219) Movement Treading (480) Ox4 Location -8/Scraptown Parts ------- > --- POWER (1) -------- Subdweller Power Source > --- PROPULSION (2) --- Light Treads Light Treads > --- UTILITY (2) ------ Huge Storage Unit Hardened Light Armor Plating > --- WEAPON (2) ------- Particle Gun > --- INVENTORY (25) --- Angular Momentum Engine Angular Momentum Engine Light Treads Light Treads Light Treads Overtuned Treads Aluminum Leg Wheel Wheel Wheel Armored Wheel Cooling System High-capacity Storage Unit Subdweller Optics ECM Suite Core Shielding Medium Armor Plating Improved Medium Armor Plating Reactive Plating High-powered Tractor Beam Beam Cannon Subdweller Machine Gun Missile Launcher Maul Peak State ------------ > --- POWER ------------ Subdweller Power Source > --- PROPULSION ------- Wheel Armored Wheel > --- UTILITY ---------- Cooling System Huge Storage Unit > --- WEAPON ----------- Particle Gun Beam Cannon > --- INVENTORY -------- Subdweller Power Source Angular Momentum Engine Angular Momentum Engine Light Treads Light Treads Light Treads Light Treads Overtuned Treads Aluminum Leg Wheel Wheel Subdweller Monowheel High-capacity Storage Unit Subdweller Optics ECM Suite Core Shielding Medium Armor Plating Hardened Light Armor Plating Improved Medium Armor Plating Reactive Plating Shield Generator High-powered Tractor Beam Subdweller Machine Gun Grenade Launcher Maul [Rating: 16] Favorites ----------- Power Subdweller Power Source Engine Subdweller Power Source Propulsion Wheel Treads Light Treads Leg Aluminum Leg Wheel Wheel Utility High-capacity Storage Unit Device Seismic Detector Storage High-capacity Storage Unit Protection Hardened Light Armor Plating Weapon Particle Gun Energy Gun Particle Gun Energy Cannon Beam Cannon Ballistic Gun Assault Rifle Launcher Grenade Launcher Impact Weapon Maul Build | -11 -10 -10 -8 ------- Run | Yrd Mat Sub Scr Slots Evolved . | . . . . Power . | . . . . Propulsion . | . . . . Utility . | . . . . Weapon . | . . . . Parts Attached 33 | 7 10 7 9 Power 4 | 1 2 1 . Engine 4 | 1 2 1 . Core . | . . . . Reactor . | . . . . Propulsion 15 | 2 6 3 4 Treads 2 | . . . 2 Leg 5 | . 2 3 . Wheel 8 | 2 4 . 2 Hover . | . . . . Flight . | . . . . Utility 7 | 2 1 1 3 Device 3 | 1 . 1 1 Storage 3 | 1 1 . 1 Processor . | . . . . Hackware . | . . . . Protection 1 | . . . 1 Artifact . | . . . . Weapon 7 | 2 1 2 2 Energy Gun 3 | 1 . 1 1 Energy Cannon 1 | . . 1 . Ballistic Gun 1 | 1 . . . Ballistic Cannon . | . . . . Launcher 1 | . 1 . . Special Weapon . | . . . . Impact Weapon 1 | . . . 1 Slashing Weapon . | . . . . Piercing Weapon . | . . . . Special Melee Weapon . | . . . . Unidentified Prototypes . | . . . . Parts Lost 6 | . . 5 1 Power 1 | . . 1 . Propulsion 1 | . . 1 . Utility 1 | . . 1 . Weapon 3 | . . 2 1 Highest Loss Streak 4 | . . 4 1 To Critical Strikes . | . . . . Average Backups 18 | 5 15 19 22 Power 1 | . . 1 2 Propulsion 9 | 3 9 11 8 Utility 4 | . 1 2 8 Weapon 3 | . 3 3 3 Tool/Special . | . . . . Unused Backups 22 | . . . 22 Power 4 | . . . 4 Propulsion 6 | . . . 6 Utility 8 | . . . 8 Weapon 4 | . . . 4 Tool/Special . | . . . . Average Slot Usage (%) 100 | . 100 100 100 Engine 14 | . 14 14 14 Leg 9 | . 3 22 . Wheel 18 | . 24 5 25 Device 13 | . 14 14 13 Storage 14 | . 14 14 14 Energy Gun 14 | . 14 15 14 Energy Cannon 8 | . . 11 12 Ballistic Gun 4 | . 13 1 . Peak Build Rating 16 | 7 9 13 16 Average Rating 11 | 5 8 12 14 On Entrance 7 | . 7 9 13 Avg Prop Armor Cover (%) 6 | . 6 . 6 Naked Turns . | . . . . Heaviest Build 93 | 13 50 52 93 Greatest Support 32 | 20 32 20 22 Greatest Overweight (x) 5 | 1 4 2 5 Average Overweight (x) 2 | . 1 2 4 Largest Inventory Capacity 25 | 8 20 20 25 Average Capacity 20 | 7 19 20 23 Most Carried 25 | 8 20 20 25 Average Carried 19 | 5 15 19 22 Final Capacity 25 | 8 20 20 25 Final Carried 24 | 8 19 20 24 Class Distribution -------------------- 64% | Mutant 35% | Scavenger-Mutant Dominant Class ---------------- Mutant | -10/Materials Scavenger-Mutant | -10/Subcaves Mutant | -8/Scraptown Resources | -11 -10 -10 -8 ----------- Run | Yrd Mat Sub Scr Matter Collected 934 | 287 447 150 50 Remotely . | . . . . Salvage Created 1001 | 169 575 187 70 Parts 54 | 15 29 8 2 Haulers Intercepted 2 | . 2 . . Recyclers Shooed . | . . . . Parts Field Recycled . | . . . . Retrieved Matter . | . . . . Parts Self-Destructed 13 | . . 13 . Prevented . | . . . . Parts Restored . | . . . . Kills | -11 -10 -10 -8 ------- Run | Yrd Mat Sub Scr Combat Hostiles Destroyed 13 | . 8 4 1 Guns 9 | . 6 2 1 Cannons 1 | . . 1 . AOE 2 | . 2 . . Classes Destroyed 9 | 2 5 1 1 Worker 1 | . 1 . . Tunneler 5 | 5 . . . Hauler 2 | . 2 . . Recycler 3 | 1 2 . . Watcher 2 | . 2 . . Swarmer 3 | . 3 . . Grunt 5 | . 5 . . Subdweller 4 | . . 4 . Scrapper 1 | . . . 1 Best Kill Streak 4 | 4 4 2 1 Combat Bots Only 3 | . 3 2 1 Max Kills in Single Turn 3 | 1 3 1 1 Gunslinging . | . . . . Exploded 2 | . 2 . . Melee . | . . . . Uniques/NPCs Destroyed . | . . . . Combat | -11 -10 -10 -8 -------- Run | Yrd Mat Sub Scr Hostile Shots Fired 82 | . 30 39 13 Missed 19 | . 3 12 4 Hits 63 | . 27 27 9 Projectile 63 | . 27 27 9 Damage Taken 1167 | . 332 596 239 Core 295 | . 108 99 88 Absorbed by Shields . | . . . . Core Remaining (%) 100 | 100 . . . Volleys Fired 101 | 15 51 30 5 Largest 2 | 2 2 2 2 Hottest 130 | 70 70 125 130 Shots Fired 182 | 30 88 55 9 Gun 158 | 30 84 35 9 Cannon 16 | . . 16 . Launcher 8 | . 4 4 . Special . | . . . . Kinetic 66 | 15 41 10 . Thermal 108 | 15 43 41 9 Explosive 8 | . 4 4 . Electromagnetic . | . . . . Robot Hit Streak 18 | 6 15 18 8 Robot Miss Streak 6 | 2 6 2 1 Penetration Max . | . . . . Secondary Targets . | . . . . Shots Hit Robots 118 | 18 52 40 8 Core Hits 46 | 7 27 8 4 Critical Kills 1 | . . 1 . Critical Parts Destroyed . | . . . . Critical Strikes 10 | 2 5 3 . Burn 9 | 2 5 2 . Meltdown 1 | . . 1 . Melee Attacks 1 | . . . 1 Impact 1 | . . . 1 Slashing . | . . . . Piercing . | . . . . Sneak Attacks . | . . . . Combat Hostiles . | . . . . Follow-up Attacks . | . . . . Damage Inflicted 1813 | 213 872 611 117 Guns 1421 | 213 689 402 117 Cannons 209 | . . 209 . Explosions 171 | . 171 . . Melee . | . . . . Ramming 12 | . 12 . . Kinetic 544 | 91 348 105 . Thermal 1086 | 122 341 506 117 Explosive 171 | . 171 . . Electromagnetic . | . . . . Impact . | . . . . Slashing . | . . . . Piercing . | . . . . Highest Corruption . | . . . . Average Corruption . | . . . . Corruption Purged . | . . . . Corruption Blocked . | . . . . Overload Shots . | . . . . Overflow Damage 21 | . 21 . . Projectiles . | . . . . Explosions 21 | . 21 . . Melee . | . . . . Knockbacks . | . . . . Impact . | . . . . Kinetic . | . . . . Secondary . | . . . . Self-Inflicted Damage 29 | . 5 24 . Shots 1 | . . 1 . Rammed 3 | . 3 . . Targets Rammed 3 | . 3 . . Kicked . | . . . . Crushed . | . . . . Highest Temperature 219 | 99 123 . 219 Average Temperature 37 | 40 29 . 91 Received Heat Transfer 231 | . 156 39 36 Siege Activations . | . . . . Martial Activations . | . . . . Shielding Activations . | . . . . Robots Disrupted . | . . . . Combat Hostiles . | . . . . Robots Corrupted . | . . . . Combat Hostiles . | . . . . Parts Fried . | . . . . Impact Corruptions . | . . . . Robots Melted 1 | . . 1 . Combat Hostiles 1 | . . 1 . Parts Melted 8 | 2 4 1 1 Heat Transferred 3419 | 518 1369 1332 200 Parts Sabotaged . | . . . . Parts Stolen . | . . . . Parts Stripped . | . . . . Power Chain Reactions . | . . . . Alert | -11 -10 -10 -8 ------- Run | Yrd Mat Sub Scr Maximum Alert Level . | . . . . Low Security (%) 100 | 100 100 . . Level 1 . | . . . . Level 2 . | . . . . Level 3 . | . . . . Level 4 . | . . . . Level 5 . | . . . . High Security . | . . . . Max Security . | . . . . Peak Influence 85 | 20 85 . . Initial . | . . . . Average 19 | 3 21 . . Influence Increases 445 | 30 415 . . Destroy 0b10 Robot/C 160 | . 160 . . Destroy 0b10 Robot/NC 65 | 30 35 . . Destroy Leader 48 | . 48 . . Successful Hack 53 | . 53 . . Disable Machine 15 | . 15 . . Destroy Structure 29 | . 29 . . Lose Combat Pursuer 75 | . 75 . . Influence Decreases 445 | 30 379 36 . Entered New Map 18 | . . 18 . Time Decay 427 | 30 379 18 . Squads Dispatched 2 | . 2 . . Investigation 1 | . 1 . . Extermination . | . . . . Reinforcement 1 | . 1 . . Assault . | . . . . Garrison . | . . . . Intercept . | . . . . Searches Triggered . | . . . . Construction Impeded . | . . . . Haulers Reinforced . | . . . . Active Scanning Responses . | . . . . Cargo Convoy Interrupts . | . . . . Stealth | -11 -10 -10 -8 --------- Run | Yrd Mat Sub Scr Distress Signals 2 | . 2 . . Communications Jammed . | . . . . Distress Signals . | . . . . Times Spotted 40 | . 28 4 8 Peak Tracking Total 6 | . 4 2 6 Tactical Retreats 4 | . 4 . . Traps | -11 -10 -10 -8 ------- Run | Yrd Mat Sub Scr Traps Triggered 1 | . 1 . . Indirectly . | . . . . Trap Hack Attempts . | . . . . Triggered . | . . . . Disarmed . | . . . . Reprogrammed . | . . . . Reused . | . . . . Traps Extracted . | . . . . Installed . | . . . . Triggered . | . . . . Machines | -11 -10 -10 -8 ---------- Run | Yrd Mat Sub Scr Machines Disabled 2 | . 1 . 1 Max in Single Turn 1 | . 1 . 1 Machines Repaired . | . . . . Machines Dismantled . | . . . . Machines Sabotaged . | . . . . Overloaded Fab Kills . | . . . . Hacking | -11 -10 -10 -8 --------- Run | Yrd Mat Sub Scr Machines Accessed 9 | . 7 . 2 Terminals 7 | . 7 . . Fabricators . | . . . . Repair Stations . | . . . . Recycling Units . | . . . . Scanalyzers . | . . . . Garrison Access . | . . . . Total Hacks 42 | . 25 . 17 Successful 32 | . 15 . 17 Failed 10 | . 10 . . Catastrophic . | . . . . Database Lockouts . | . . . . Manual 22 | . 22 . . Terminals 25 | . 25 . . Fabricators . | . . . . Repair Stations . | . . . . Recycling Units . | . . . . Scanalyzers . | . . . . Garrison Access . | . . . . Terminal Hacks 21 | . 4 . 17 Record 17 | . . . 17 Part Schematic 1 | . 1 . . Robot Analysis 2 | . 2 . . Locate Traps 1 | . 1 . . Fabricator Hacks . | . . . . Repair Station Hacks . | . . . . Recycling Unit Hacks . | . . . . Scanalyzer . | . . . . Garrison Access Hacks . | . . . . Unauthorized Hacks 11 | . 11 . . Terminals 11 | . 11 . . Botnet 6 | . 6 . . Skim 5 | . 5 . . Fabricators . | . . . . Repair Stations . | . . . . Recycling Units . | . . . . Scanalyzers . | . . . . Garrison Access . | . . . . Data Cores Recovered . | . . . . Used . | . . . . Hacking Detections 7 | . 7 . . Full Trace Events . | . . . . Feedback Events . | . . . . Feedback Blocked . | . . . . Robot Schematics Acquired . | . . . . Robots Built . | . . . . Authchips . | . . . . Time . | . . . . Total Robot Build Rating . | . . . . Part Schematics Acquired 1 | . 1 . . Parts Built . | . . . . Authchips . | . . . . Time . | . . . . Total Part Build Rating . | . . . . Part Studies Acquired . | . . . . Parts Repaired . | . . . . Time . | . . . . Parts Recycled . | . . . . Recycled Matter . | . . . . Retrieved Matter . | . . . . Retrieved Components . | . . . . Parts Scanalyzed . | . . . . Part Schematics Acquired . | . . . . Parts Damaged . | . . . . Bothacking | -11 -10 -10 -8 ------------ Run | Yrd Mat Sub Scr Used RIF Installer . | . . . . Robots Hacked . | . . . . Non-combat . | . . . . Combat . | . . . . Robot Hacks Applied . | . . . . Relay Couplers Released . | . . . . Fabnet Peak Effective % . | . . . . Robots Rewired . | . . . . Allies Hacked . | . . . . Hacks Repelled . | . . . . Allies | -11 -10 -10 -8 -------- Run | Yrd Mat Sub Scr Total Allies . | . . . . Largest Group . | . . . . Highest-Rated Group . | . . . . Highest-Rated Ally . | . . . . Total Orders . | . . . . Ally Attacks . | . . . . Total Damage . | . . . . Kills . | . . . . Allies Corrupted . | . . . . Allies Melted . | . . . . Intel | -11 -10 -10 -8 ------- Run | Yrd Mat Sub Scr Active Infowar (turns) 1959 | 19 1618 322 . Seismic 1959 | 19 1618 322 . Robot Analysis Total 2 | . 2 . . Derelict Logs Recovered 6 | . . 3 3 Drone Launches . | . . . . Drone Recoveries . | . . . . Exploration | -11 -10 -10 -8 ------------- Run | Yrd Mat Sub Scr Turns Passed 5455 | 145 1618 1823 1869 Spaces Moved 2831 | 98 835 741 1157 Core 1 | 1 . . . Treads . | . . . . Legs 492 | . 15 475 2 Wheels 2338 | 97 820 266 1155 Hover . | . . . . Flight . | . . . . Fastest Speed 50 | 50 80 110 110 Average Speed 151 | 80 118 206 146 Slowest Speed 260 | 95 260 260 260 Overloaded Moves . | . . . . Propulsion Burnouts . | . . . . Robots Hopped . | . . . . Potential Cave-ins . | . . . . Cave-ins Triggered . | . . . . Exploration Rate (%) 50 | 4 98 35 65 Regions Visited 3 Branch Regions 2 Pre-discovered Areas 6 | . 2 3 1 Known Exits Taken 1 | . 1 . . Unknown Exits Taken 2 | 1 . 1 . Scrap Searched 7 | . . . 7 Spaces Dug 53 | . 23 30 . Terrain Destroyed 58 | . 28 30 . Melee . | . . . . Projectile . | . . . . AOE 58 | . 28 30 . Terrain Rammed . | . . . . Walls Destroyed . | . . . . Machines Disabled . | . . . . Actions | -11 -10 -10 -8 --------- Run | Yrd Mat Sub Scr Total 3811 | 131 1371 980 1329 Wait 748 | 1 429 194 124 Move 2828 | 97 834 740 1157 Hop . | . . . . Pick Up 51 | 10 18 6 17 Fast Attach 6 | 6 . . . Attach 6 | 1 . 5 . Detach . | . . . . Swap 42 | . 27 5 10 Drop 25 | 1 9 . 15 Fire 101 | 15 51 30 5 Melee 1 | . . . 1 Ram 3 | . 3 . . Kick . | . . . . Crush . | . . . . Escape Stasis . | . . . . Rewire . | . . . . Trap . | . . . . Miscellaneous . | . . . . Route ------- -11/Scrapyard -10/Materials (discovered 6 exits: *Mat x3 / [*Min x2] / *Sub) -10/Subcaves (discovered 4 exits: Mat x2 / Rec / *Scr) -8/Scraptown (discovered 1 exit: [*Fac]) History --------- Turn | Location | Event 2 | -11/Scrapyard | Met Revision 17 10 | -11/Scrapyard | Discovered new exit (range 15) 146 | -11/Scrapyard | Entered Materials 308 | -10/Materials | Build established: Mutant 329 | -10/Materials | Discovered new exit (range 16) 645 | -10/Materials | Discovered new exit (range 14) 803 | -10/Materials | Discovered new exit (range 16) 922 | -10/Materials | Discovered new exit (range 16) 1051 | -10/Materials | Identified exit to Materials 1051 | -10/Materials | Identified exit to Subcaves 1091 | -10/Materials | Learned location of 2 exits from Subcaves 1160 | -10/Materials | Learned location of Subcaves (-10) 1181 | -10/Materials | Learned location of 1 exit from Recycling 1249 | -10/Materials | Learned location of 2 exits from Mines 1764 | -10/Materials | Entered Subcaves 1765 | -10/Subcaves | Approached by a straggling Scientist 1765 | -10/Subcaves | Identified exit to Materials 1766 | -10/Subcaves | Identified exit to Recycling 1790 | -10/Subcaves | Learned location of Zion (-6) 2066 | -10/Subcaves | Ambushed by Subdweller buried in earth 2075 | -10/Subcaves | Core integrity fell below 50% 2133 | -10/Subcaves | Lost 4 parts (1n1u2w) 2203 | -10/Subcaves | Build established: Scavenger-Mutant 2597 | -10/Subcaves | Learned Materials emergency access door positions 2688 | -10/Subcaves | Core integrity fell below 20% 2756 | -10/Subcaves | Met a Zionite searching for "candidates" 3587 | -10/Subcaves | Entered Scraptown 3892 | -8/Scraptown | Build established: Mutant 4296 | -8/Scraptown | Discovered new exit (range 13) 4314 | -8/Scraptown | Scanned Subdweller tech in exchange for log data 4317 | -8/Scraptown | Learned location of Armory (-3) 4318 | -8/Scraptown | Learned Factory interactive machine intel 4320 | -8/Scraptown | Learned location of 1 exit from Lower Caves 4451 | -8/Scraptown | Heard Great Nut preacher, LISTEN AND RECITE! 4512 | -8/Scraptown | Visited Red Mages 4583 | -8/Scraptown | Visited Bundlers 4962 | -8/Scraptown | Visited IN-MT5's Study 5031 | -8/Scraptown | Visited Cave Peace 5114 | -8/Scraptown | Visited Awakened 5159 | -8/Scraptown | Visited Shadow of the Wyrm 5192 | -8/Scraptown | Visited Symbiants 5267 | -8/Scraptown | Visited UFD Registry 5267 | -8/Scraptown | Registered with UFD as "Steelbrain" 5331 | -8/Scraptown | Attacked by Scraptown defenders 5456 | -8/Scraptown | Destroyed by Triborg with Siege Cannon Last Messages --------------- member, Steelbrain! Open the gate! F9-05H(j): Hey there, Steelbrain, are you a representative, or here for some other purpose? 05312_ LOCAL NARROWCAST: Closed for remodeling. 05331_ Machine disabled. 05331_ ANNOUNCEMENT: Intruder alert! Defend Scraptown! 05333_ F9-05H(j): "Go back to where you came from you... uncivilized cave monster!" 05345_ Ovr. Pulse Rifle melted. 05345_ F9-05H(j) destroyed. 05423_ ANNOUNCEMENT: Triborg tracking relay activated. Stay clear or you only have yourself to blame! 05447_ Machine disabled. 05447_ Slug penetrates Machine. 05450_ Penetrated by Slug. 05455_ Particle Gun destroyed. 05456_ Penetrated by Siege Slug. Map ----- +----------------------------------------------------+ | # #???????" "??????????????????????? | | # #???????" ""?????????????????????? | | # #???????" ""?????????????????????? | | # #??????"" ""?????????????????????? | | "# ###?#??"" ""#????????????????????? | | ## ""#"#??"" ""#? "?????????????????? | | ## """"#???" ""# "?????????????????? | | ## ""###???#" "" ??????????????????? | | ?# ###?????#" "" ???????????????????? | | ?# #########" ""#????????????????????? | | ?# ""#????????????????????? | | ?# ""#????????????????????? | | ?# ""#????????????????????? | | ?# ""#????????????????????? | | ## ""###### ?????????????? | | """"""""""""???????????? | | j """"""""""""""?????????? | | x ????????? | | p ????????? | | TT ???????? | | #""""#"TT p ???????? | | #????#" ???????? | | #????#""" "" """"""""""" "?????????? | | ######## ####????#####;#=#########?????????????? | | #??# #????????#""" E"""#??????????????????? | | "#??# #????????# @= #??????????????????? | | "#??# #????????# ""#??????????????????? | | ""#??# #????????# "#??????????????????? | | """#??# #????????# " """" #??????????????????? | | ""#??# #????????# """ " #??????????????????? | | "#??# #????????#" """"#??????????????????? | | "#??# #????????#"""""""" #??????????????????? | | """"#??# #????????###########??????????????????? | | #####??# #?????????????????????????????????????? | | ???????# #?????????????????????????????????????? | | ######## #?????????????????????????????????????? | | """""""" #?????????????????????????????????????? | | "" """"" #?????????????????????????????????????? | | " " "" #?????????????????????????????????????? | | #?????????????????????????????????????? | | "" "" " #?????????????????????????????????????? | | """""""" #?????????????????????????????????????? | | """""""" #?????????????????????????????????????? | | ######## #?????????????????????????????????????? | | ######## #?????????????????????????????????????? | | """""""# #?????????????????????????????????????? | | !=!]! "# #?????????????????????????????????????? | | ! ! "# #?????????????????????????????????????? | | [ "# #?????????????????????????????????????? | | """""""# #?????????????????????????????????????? | +----------------------------------------------------+ Best States ------------- Heat Dissipation 47 Energy Generation 10 Energy Capacity 250 Matter Stores 300 Matter Capacity 300 Sight Range 16 Terrain Scan Density 10 Armor Coverage 150 Evasion (%) 44 Recoil Reduction 1 Item Schematics ----------------- Hcp. Storage Unit | -10/Materials | Hacked Robot Schematics ------------------ None Fabricated ------------ Nothing Repaired ---------- Nothing Studied --------- None Alien Tech Used ----------------- None Achievements -------------- None Challenges ------------ None Game ------ Seed BombardmentDisassembledCore Manual? 0 Play Time 00:42:26 Cumulative 80.9 hours Start 2025.11.07 @ 09:26:19 End 2025.11.07 @ 11:01:19 Sessions 2 Manual Loads 0 Difficulty Rogue Special Mode None Game No. 73 Rogue 73 Adventurer 0 Explorer 0 Win Type - Total 0 Types 0/0/0/0/0/0/0/0/0/0 Lore% 30 Gallery% 40 Achievement% 29 Wizard Run 0 Options --------- Layout 2 ASCII 0 Keyboard 0 Movement Mouse Keybinds 0 Fullscreen 2 Font 24/Terminus Map View 50x44 Zoom Use 0% Tactical HUD 1 Map Filters NONE Filters NONE Steam 1 RUN: 77aae7ce-5715-4c2b-bf36-0324101da7fc